[Event "*** Titled Tuesday Blitz"]
[Site "Chess.com"]
[Date "2019.05.07"]
[Round "1"]
[White "KRASAVCHIK2002"]
[Black "mitrabhaa"]
[Result "0-1"]
[WhiteElo "2333"]
[BlackElo "2652"]
[TimeControl "180+2"]
[EndTime "13:05:52 PDT"]
[Termination "mitrabhaa won by resignation"]

1. e4 {[%clk 0:03:00.9]} 1... c6 {[%clk 0:03:00.5]} 2. d4 {[%clk 0:03:01.5]}
2... d5 {[%clk 0:03:00.7]} 3. Nc3 {[%clk 0:03:03.4]} 3... dxe4 {[%clk
0:03:01.3]} 4. Nxe4 {[%clk 0:03:05.3]} 4... Nf6 {[%clk 0:03:01]} 5. Nxf6+ {[%clk
0:03:05.8]} 5... exf6 {[%clk 0:03:01.7]} 6. Bd3 {[%clk 0:03:05.8]} 6... Bd6
{[%clk 0:03:03.2]} 7. Ne2 {[%clk 0:02:58]} 7... O-O {[%clk 0:03:02.9]} 8. h4
{[%clk 0:02:54.1]} 8... Re8 {[%clk 0:02:57.8]} 9. c3 {[%clk 0:02:42.7]} 9... Bg4
{[%clk 0:02:56.2]} 10. Qc2 {[%clk 0:02:43.1]} 10... h6 {[%clk 0:02:55.9]} 11. f3
{[%clk 0:02:40.1]} 11... Be6 {[%clk 0:02:54]} 12. g4 {[%clk 0:02:38.3]} 12...
Nd7 {[%clk 0:02:52.4]} 13. Kf2 {[%clk 0:02:30.8]} 13... Bd5 {[%clk 0:02:49]} 14.
c4 {[%clk 0:02:14.9]} 14... Be6 {[%clk 0:02:49.3]} 15. Be3 {[%clk 0:02:08.7]}
15... Qe7 {[%clk 0:02:40.3]} 16. b3 {[%clk 0:02:09.9]} 16... Bxc4 {[%clk
0:02:38.9]} 17. bxc4 {[%clk 0:02:04.3]} 17... Qxe3+ {[%clk 0:02:39.3]} 18. Kg2
{[%clk 0:02:06.2]} 18... c5 {[%clk 0:02:35.6]} 19. Rae1 {[%clk 0:01:54.4]} 19...
cxd4 {[%clk 0:02:34.6]} 20. Ng3 {[%clk 0:01:50.3]} 20... Qf4 {[%clk 0:02:28.6]}
21. Nh5 {[%clk 0:01:29.5]} 21... Rxe1 {[%clk 0:02:10.4]} 22. Rxe1 {[%clk
0:01:31.4]} 22... Qh2+ {[%clk 0:02:10.3]} 23. Kf1 {[%clk 0:01:24.9]} 23... Qxh4
{[%clk 0:02:05.5]} 24. Be4 {[%clk 0:01:22.5]} 24... Nc5 {[%clk 0:02:03.8]} 25.
Qf2 {[%clk 0:01:15.3]} 25... Qxf2+ {[%clk 0:02:00.4]} 26. Kxf2 {[%clk
0:01:17.2]} 26... Nxe4+ {[%clk 0:01:56.5]} 27. Rxe4 {[%clk 0:01:14]} 27... Rd8
{[%clk 0:01:55.1]} 28. Ke2 {[%clk 0:01:11.2]} 28... Be5 {[%clk 0:01:52.9]} 29.
Kd3 {[%clk 0:01:10.3]} 29... g6 {[%clk 0:01:53.5]} 30. Nf4 {[%clk 0:01:07.2]}
30... Bxf4 {[%clk 0:01:54.2]} 31. Rxf4 {[%clk 0:01:09.1]} 31... Kg7 {[%clk
0:01:55.7]} 32. Rxd4 {[%clk 0:01:04.9]} 32... Rxd4+ {[%clk 0:01:56.2]} 33. Kxd4
{[%clk 0:01:06.8]} 33... h5 {[%clk 0:01:57.7]} 34. Ke4 {[%clk 0:01:03.2]} 34...
h4 {[%clk 0:01:52.5]} 35. f4 {[%clk 0:01:04.4]} 35... g5 {[%clk 0:01:53.3]} 0-1

[Event "*** Titled Tuesday Blitz"]
[Site "Chess.com"]
[Date "2019.05.07"]
[Round "1"]
[White "GameOverBro"]
[Black "ChessWeebs"]
[Result "0-1"]
[WhiteElo "2419"]
[BlackElo "2772"]
[TimeControl "180+2"]
[EndTime "13:06:05 PDT"]
[Termination "ChessWeebs won by checkmate"]

1. e4 {[%clk 0:03:01.9]} 1... c6 {[%clk 0:02:58.9]} 2. Nc3 {[%clk 0:03:02.1]}
2... d5 {[%clk 0:02:59.9]} 3. Nf3 {[%clk 0:03:03.2]} 3... Bg4 {[%clk 0:03:01.2]}
4. h3 {[%clk 0:03:03.8]} 4... Bxf3 {[%clk 0:03:02]} 5. Qxf3 {[%clk 0:03:05.3]}
5... e6 {[%clk 0:03:03.5]} 6. a3 {[%clk 0:03:06.5]} 6... g6 {[%clk 0:03:03.9]}
7. d3 {[%clk 0:03:05.9]} 7... Bg7 {[%clk 0:03:04.6]} 8. Bd2 {[%clk 0:03:06.8]}
8... Ne7 {[%clk 0:03:05.4]} 9. g3 {[%clk 0:03:08]} 9... O-O {[%clk 0:03:05.7]}
10. Bg2 {[%clk 0:03:09]} 10... f5 {[%clk 0:03:07.2]} 11. Qe2 {[%clk 0:03:09.1]}
11... Nd7 {[%clk 0:03:00.1]} 12. O-O {[%clk 0:03:09]} 12... Re8 {[%clk
0:02:59.6]} 13. f4 {[%clk 0:02:55.3]} 13... Qb6+ {[%clk 0:02:45.1]} 14. Kh2
{[%clk 0:02:50.7]} 14... Rad8 {[%clk 0:02:44.9]} 15. Rab1 {[%clk 0:02:46.7]}
15... Kh8 {[%clk 0:02:41.3]} 16. e5 {[%clk 0:02:39.2]} 16... c5 {[%clk
0:02:41.7]} 17. g4 {[%clk 0:02:38.7]} 17... Nc6 {[%clk 0:02:36.7]} 18. Qf2
{[%clk 0:02:33.9]} 18... Rf8 {[%clk 0:02:24]} 19. g5 {[%clk 0:02:34.4]} 19... h5
{[%clk 0:02:13.7]} 20. gxh6 {[%clk 0:02:30.3]} 20... Bxh6 {[%clk 0:02:14.8]} 21.
h4 {[%clk 0:02:28.9]} 21... Kh7 {[%clk 0:02:13.8]} 22. Ne2 {[%clk 0:02:17.5]}
22... Ncxe5 {[%clk 0:02:07.6]} 23. fxe5 {[%clk 0:02:14]} 23... Bxd2 {[%clk
0:02:04.5]} 24. Nf4 {[%clk 0:02:14.1]} 24... Bxf4+ {[%clk 0:01:57]} 25. Qxf4
{[%clk 0:02:16]} 25... Kg7 {[%clk 0:01:56.4]} 26. Bf3 {[%clk 0:02:15.7]} 26...
Rh8 {[%clk 0:01:54.1]} 27. Kg3 {[%clk 0:02:16.9]} 27... Qc7 {[%clk 0:01:48.9]}
28. Rbe1 {[%clk 0:02:17]} 28... d4 {[%clk 0:01:49.7]} 29. Rh1 {[%clk 0:02:15]}
29... Kf7 {[%clk 0:01:48.5]} 30. b3 {[%clk 0:02:15.5]} 30... Rdg8 {[%clk
0:01:45.7]} 31. Kf2 {[%clk 0:02:14.3]} 31... Ke7 {[%clk 0:01:41.7]} 32. a4
{[%clk 0:02:09.5]} 32... Kd8 {[%clk 0:01:41.2]} 33. Rhg1 {[%clk 0:02:01.7]}
33... Kc8 {[%clk 0:01:41]} 34. h5 {[%clk 0:02:00.2]} 34... gxh5 {[%clk
0:01:41.2]} 35. Rxg8+ {[%clk 0:01:59.5]} 35... Rxg8 {[%clk 0:01:43.1]} 36. Bxh5
{[%clk 0:02:00.4]} 36... Rg7 {[%clk 0:01:34.2]} 37. Be8 {[%clk 0:01:59.8]} 37...
Nf8 {[%clk 0:01:31.5]} 38. Qh6 {[%clk 0:01:55.3]} 38... Qe7 {[%clk 0:01:28]} 39.
Bb5 {[%clk 0:01:50.7]} 39... Rh7 {[%clk 0:01:27.8]} 40. Qf4 {[%clk 0:01:50.6]}
40... Rh4 {[%clk 0:01:28.6]} 41. Qg3 {[%clk 0:01:50.7]} 41... Rg4 {[%clk
0:01:29.9]} 42. Qh3 {[%clk 0:01:51]} 42... Qg5 {[%clk 0:01:30.2]} 43. Rf1 {[%clk
0:01:43]} 43... Qd2+ {[%clk 0:01:28.4]} 44. Kf3 {[%clk 0:01:43]} 44... Qe3#
{[%clk 0:01:30.1]} 0-1

[Event "*** Titled Tuesday Blitz"]
[Site "Chess.com"]
[Date "2019.05.07"]
[Round "1"]
[White "kleinebeer98"]
[Black "PowerThinking2650"]
[Result "1-0"]
[WhiteElo "2714"]
[BlackElo "2374"]
[TimeControl "180+2"]
[EndTime "13:06:14 PDT"]
[Termination "kleinebeer98 won by resignation"]

1. e4 {[%clk 0:03:00.7]} 1... e5 {[%clk 0:03:00.2]} 2. Qh5 {[%clk 0:03:01.1]}
2... Nc6 {[%clk 0:03:00.2]} 3. Bc4 {[%clk 0:03:02.5]} 3... g6 {[%clk 0:03:01.2]}
4. Qf3 {[%clk 0:03:03]} 4... Nf6 {[%clk 0:03:02.3]} 5. Ne2 {[%clk 0:03:04.2]}
5... Bg7 {[%clk 0:02:59]} 6. d3 {[%clk 0:03:05.1]} 6... O-O {[%clk 0:02:58.3]}
7. Nbc3 {[%clk 0:03:06.5]} 7... Na5 {[%clk 0:02:58]} 8. Bg5 {[%clk 0:03:05.7]}
8... Nxc4 {[%clk 0:02:57]} 9. dxc4 {[%clk 0:03:07.6]} 9... h6 {[%clk 0:02:58.2]}
10. Be3 {[%clk 0:03:05.6]} 10... d6 {[%clk 0:02:56.4]} 11. h3 {[%clk 0:03:07]}
11... b6 {[%clk 0:02:56]} 12. g4 {[%clk 0:03:05.4]} 12... Be6 {[%clk 0:02:45.8]}
13. b3 {[%clk 0:03:05.3]} 13... Nd7 {[%clk 0:02:41.9]} 14. Ng3 {[%clk
0:03:02.5]} 14... Qh4 {[%clk 0:02:36.6]} 15. O-O-O {[%clk 0:02:51.9]} 15... a6
{[%clk 0:02:31.4]} 16. Rdg1 {[%clk 0:02:43.4]} 16... Bf6 {[%clk 0:02:30.3]} 17.
Nf5 {[%clk 0:02:41.2]} 17... Bxf5 {[%clk 0:01:29.5]} 18. gxf5 {[%clk 0:02:43.1]}
18... Bg5 {[%clk 0:01:30]} 19. Bxg5 {[%clk 0:02:25]} 19... hxg5 {[%clk
0:01:30.3]} 20. Rg4 {[%clk 0:02:26.4]} 20... Qh5 {[%clk 0:01:19.6]} 21. Qg3
{[%clk 0:02:23.5]} 21... f6 {[%clk 0:01:15.3]} 22. h4 {[%clk 0:02:22.1]} 22...
gxf5 {[%clk 0:01:02.6]} 23. exf5 {[%clk 0:02:22.4]} 23... Kf7 {[%clk 0:00:51]}
24. Qf3 {[%clk 0:02:15.8]} 24... Rh8 {[%clk 0:00:44.6]} 25. Rhg1 {[%clk
0:02:04.1]} 25... Rag8 {[%clk 0:00:33]} 26. Kb2 {[%clk 0:01:56.1]} 26... Ke7
{[%clk 0:00:19.7]} 27. Qc6 {[%clk 0:01:55.7]} 27... Rg7 {[%clk 0:00:04.6]} 28.
Nd5+ {[%clk 0:01:56]} 28... Kd8 {[%clk 0:00:03]} 29. Qa8+ {[%clk 0:01:56.7]} 1-0

[Event "*** Titled Tuesday Blitz"]
[Site "Chess.com"]
[Date "2019.05.07"]
[Round "1"]
[White "FearlessKing64"]
[Black "Gubajdullin"]
[Result "0-1"]
[WhiteElo "2176"]
[BlackElo "2534"]
[TimeControl "180+2"]
[EndTime "13:06:16 PDT"]
[Termination "Gubajdullin won by resignation"]

1. e4 {[%clk 0:03:01.4]} 1... c6 {[%clk 0:02:59.8]} 2. d4 {[%clk 0:03:01.8]}
2... d5 {[%clk 0:02:57.4]} 3. exd5 {[%clk 0:02:58.2]} 3... cxd5 {[%clk 0:02:58]}
4. c4 {[%clk 0:02:59.6]} 4... Nf6 {[%clk 0:02:58.6]} 5. Nc3 {[%clk 0:03:01]}
5... e6 {[%clk 0:02:59.5]} 6. Nf3 {[%clk 0:03:01.5]} 6... Bb4 {[%clk 0:02:59.9]}
7. cxd5 {[%clk 0:02:59]} 7... Nxd5 {[%clk 0:03:00]} 8. Qc2 {[%clk 0:03:00.5]}
8... Nc6 {[%clk 0:03:00.4]} 9. a3 {[%clk 0:02:59.6]} 9... Be7 {[%clk 0:02:58.7]}
10. Bd3 {[%clk 0:02:56.6]} 10... Nf6 {[%clk 0:02:59.1]} 11. Be3 {[%clk 0:02:54]}
11... O-O {[%clk 0:02:59.5]} 12. O-O {[%clk 0:02:52.5]} 12... h6 {[%clk
0:02:56.9]} 13. Rad1 {[%clk 0:02:52.9]} 13... b6 {[%clk 0:02:55.1]} 14. Ne4
{[%clk 0:02:48.8]} 14... Bb7 {[%clk 0:02:55.1]} 15. Nxf6+ {[%clk 0:02:45]} 15...
Bxf6 {[%clk 0:02:55.7]} 16. Be4 {[%clk 0:02:46.7]} 16... Rc8 {[%clk 0:02:55]}
17. d5 {[%clk 0:02:46.8]} 17... Na5 {[%clk 0:02:43.9]} 18. Bh7+ {[%clk
0:02:04.9]} 18... Kh8 {[%clk 0:02:44]} 19. dxe6 {[%clk 0:02:04.3]} 19... Rxc2
{[%clk 0:02:44.7]} 20. Rxd8 {[%clk 0:02:04.2]} 20... Rxd8 {[%clk 0:02:45.3]} 21.
Bxc2 {[%clk 0:02:05.1]} 21... fxe6 {[%clk 0:02:45.4]} 22. Rd1 {[%clk 0:01:48.7]}
22... Rxd1+ {[%clk 0:02:43.2]} 23. Bxd1 {[%clk 0:01:50.6]} 23... Nc4 {[%clk
0:02:43.5]} 24. Bc1 {[%clk 0:01:44.9]} 24... Nxb2 {[%clk 0:02:36]} 25. Bb3
{[%clk 0:01:41.1]} 25... Bd5 {[%clk 0:02:32.2]} 26. Bc2 {[%clk 0:01:20.4]} 26...
b5 {[%clk 0:02:26.6]} 27. Be3 {[%clk 0:01:04.5]} 27... a5 {[%clk 0:02:17.6]} 28.
Nd4 {[%clk 0:00:59.9]} 28... b4 {[%clk 0:02:13.5]} 29. axb4 {[%clk 0:01:00.5]}
29... axb4 {[%clk 0:02:14.6]} 30. Nb3 {[%clk 0:00:55]} 30... Nc4 {[%clk
0:02:13]} 31. Bd4 {[%clk 0:00:45.1]} 31... Na3 {[%clk 0:02:07.4]} 32. Bxf6
{[%clk 0:00:22.9]} 32... Nxc2 {[%clk 0:02:01.6]} 33. Nd4 {[%clk 0:00:24.3]}
33... gxf6 {[%clk 0:01:58]} 34. Nxc2 {[%clk 0:00:24.4]} 34... b3 {[%clk
0:01:59]} 35. Na3 {[%clk 0:00:24.8]} 35... b2 {[%clk 0:02:00]} 36. f3 {[%clk
0:00:25.1]} 36... Ba2 {[%clk 0:02:00.6]} 0-1

[Event "*** Titled Tuesday Blitz"]
[Site "Chess.com"]
[Date "2019.05.07"]
[Round "1"]
[White "FMJoseHerrera"]
[Black "Micki-taryan"]
[Result "0-1"]
[WhiteElo "2501"]
[BlackElo "3051"]
[TimeControl "180+2"]
[EndTime "13:06:31 PDT"]
[Termination "Micki-taryan won by checkmate"]

1. Nf3 {[%clk 0:03:00.8]} 1... Nf6 {[%clk 0:03:00.7]} 2. g3 {[%clk 0:03:02.7]}
2... g6 {[%clk 0:03:00.5]} 3. Bg2 {[%clk 0:03:03.2]} 3... Bg7 {[%clk 0:03:02.4]}
4. d3 {[%clk 0:03:04.3]} 4... O-O {[%clk 0:03:04.3]} 5. Nc3 {[%clk 0:03:05.4]}
5... d5 {[%clk 0:03:04.8]} 6. h4 {[%clk 0:03:06.6]} 6... c5 {[%clk 0:03:00.9]}
7. Bg5 {[%clk 0:03:07]} 7... Nc6 {[%clk 0:03:00]} 8. Qd2 {[%clk 0:03:07.2]} 8...
Bg4 {[%clk 0:02:58.2]} 9. Bh6 {[%clk 0:03:07.3]} 9... Qa5 {[%clk 0:02:50.6]} 10.
Bxg7 {[%clk 0:03:07.4]} 10... Kxg7 {[%clk 0:02:52.5]} 11. h5 {[%clk 0:03:04.6]}
11... Bxh5 {[%clk 0:02:46.6]} 12. g4 {[%clk 0:02:37.7]} 12... Nxg4 {[%clk
0:02:42.4]} 13. Rxh5 {[%clk 0:01:06.6]} 13... gxh5 {[%clk 0:02:40]} 14. Qg5+
{[%clk 0:01:08.5]} 14... Kh8 {[%clk 0:02:41.2]} 15. Qxd5 {[%clk 0:01:10.4]}
15... Nf6 {[%clk 0:02:40]} 16. Qf5 {[%clk 0:01:06.4]} 16... Qb4 {[%clk
0:02:33.3]} 17. O-O-O {[%clk 0:01:01.7]} 17... Qg4 {[%clk 0:02:34.7]} 18. Qxg4
{[%clk 0:00:46.2]} 18... hxg4 {[%clk 0:02:34.9]} 19. Ng5 {[%clk 0:00:47.3]}
19... h6 {[%clk 0:02:30.5]} 20. Rh1 {[%clk 0:00:47.9]} 20... Kg7 {[%clk
0:02:31.4]} 21. Nge4 {[%clk 0:00:49.3]} 21... Nxe4 {[%clk 0:02:31.2]} 22. Nxe4
{[%clk 0:00:51.2]} 22... Nd4 {[%clk 0:02:27]} 23. e3 {[%clk 0:00:32.8]} 23...
Ne6 {[%clk 0:02:27.4]} 24. Ng3 {[%clk 0:00:34.3]} 24... f5 {[%clk 0:02:17.5]}
25. Bxb7 {[%clk 0:00:35.2]} 25... Rab8 {[%clk 0:02:18.9]} 26. Bd5 {[%clk
0:00:36.9]} 26... Ng5 {[%clk 0:02:20.5]} 27. Nh5+ {[%clk 0:00:33.9]} 27... Kh7
{[%clk 0:02:22]} 28. Nf4 {[%clk 0:00:32.9]} 28... e5 {[%clk 0:02:23.3]} 29. Nh5
{[%clk 0:00:26.5]} 29... Kg6 {[%clk 0:02:24.2]} 30. b3 {[%clk 0:00:25.6]} 30...
Rbd8 {[%clk 0:02:24.2]} 31. c4 {[%clk 0:00:26.3]} 31... f4 {[%clk 0:02:23]} 32.
e4 {[%clk 0:00:19.5]} 32... a5 {[%clk 0:02:17.9]} 33. Kd2 {[%clk 0:00:18.5]}
33... Rd6 {[%clk 0:02:19.1]} 34. Kc3 {[%clk 0:00:19.6]} 34... Nf3 {[%clk
0:02:20.1]} 35. Kc2 {[%clk 0:00:18.1]} 35... Nd4+ {[%clk 0:02:21.1]} 36. Kd2
{[%clk 0:00:19.4]} 36... Kg5 {[%clk 0:02:22.3]} 37. Ng7 {[%clk 0:00:19.6]} 37...
Rg6 {[%clk 0:02:23]} 38. Ne6+ {[%clk 0:00:20]} 38... Nxe6 {[%clk 0:02:23.7]} 39.
Ke2 {[%clk 0:00:18.6]} 39... Nd4+ {[%clk 0:02:23.5]} 40. Kf1 {[%clk 0:00:20.1]}
40... g3 {[%clk 0:02:25.4]} 41. Kg2 {[%clk 0:00:21.4]} 41... gxf2 {[%clk
0:02:26.6]} 42. Kxf2 {[%clk 0:00:22.9]} 42... Kf6 {[%clk 0:02:28.1]} 43. Rh5
{[%clk 0:00:23.9]} 43... Re8 {[%clk 0:02:25.1]} 44. Rh4 {[%clk 0:00:22.2]} 44...
Re7 {[%clk 0:02:26.2]} 45. Rh5 {[%clk 0:00:23.6]} 45... Reg7 {[%clk 0:02:27.7]}
46. Kf1 {[%clk 0:00:24.7]} 46... Rg1+ {[%clk 0:02:28.8]} 47. Kf2 {[%clk
0:00:25.4]} 47... R7g2# {[%clk 0:02:29]} 0-1

[Event "*** Titled Tuesday Blitz"]
[Site "Chess.com"]
[Date "2019.05.07"]
[Round "1"]
[White "DanielRensch"]
[Black "Korchmar_Vasiliy"]
[Result "0-1"]
[WhiteElo "2445"]
[BlackElo "2816"]
[TimeControl "180+2"]
[EndTime "13:06:31 PDT"]
[Termination "Korchmar_Vasiliy won by resignation"]

1. e4 {[%clk 0:03:00.3]} 1... c5 {[%clk 0:03:00.6]} 2. Nf3 {[%clk 0:03:01.4]}
2... d6 {[%clk 0:03:01.4]} 3. d4 {[%clk 0:03:02.6]} 3... cxd4 {[%clk 0:03:03.3]}
4. Nxd4 {[%clk 0:03:03.8]} 4... Nf6 {[%clk 0:03:04.6]} 5. Nc3 {[%clk 0:03:05.1]}
5... Nc6 {[%clk 0:03:06]} 6. Bg5 {[%clk 0:03:05.4]} 6... e6 {[%clk 0:03:06.8]}
7. Bb5 {[%clk 0:03:06.3]} 7... Bd7 {[%clk 0:03:07.2]} 8. Bxc6 {[%clk 0:03:05.9]}
8... bxc6 {[%clk 0:03:08.5]} 9. Qf3 {[%clk 0:03:06.7]} 9... Be7 {[%clk
0:03:04.5]} 10. O-O-O {[%clk 0:03:03.9]} 10... Qb6 {[%clk 0:02:50.5]} 11. e5
{[%clk 0:03:01.1]} 11... dxe5 {[%clk 0:02:46]} 12. Nb3 {[%clk 0:02:58.4]} 12...
Rd8 {[%clk 0:02:35.3]} 13. Ne4 {[%clk 0:02:43]} 13... Nd5 {[%clk 0:01:25.3]} 14.
Bxe7 {[%clk 0:02:42.5]} 14... Kxe7 {[%clk 0:01:27.2]} 15. Qg3 {[%clk 0:02:26.5]}
15... Nf6 {[%clk 0:00:54.5]} 16. Nec5 {[%clk 0:02:12.8]} 16... Bc8 {[%clk
0:00:45.7]} 17. Qxe5 {[%clk 0:02:12]} 17... Rd5 {[%clk 0:00:43.7]} 18. Rxd5
{[%clk 0:01:58]} 18... cxd5 {[%clk 0:00:45.6]} 19. f4 {[%clk 0:01:49.1]} 19...
Re8 {[%clk 0:00:41.6]} 20. Re1 {[%clk 0:01:49.6]} 20... Kf8 {[%clk 0:00:41.8]}
21. a4 {[%clk 0:01:48]} 21... Kg8 {[%clk 0:00:40.5]} 22. a5 {[%clk 0:01:48.6]}
22... Qb4 {[%clk 0:00:39.8]} 23. f5 {[%clk 0:01:46.2]} 23... h6 {[%clk
0:00:33.3]} 24. fxe6 {[%clk 0:01:45.1]} 24... Bxe6 {[%clk 0:00:35.2]} 25. Qd4
{[%clk 0:01:41.3]} 25... Qxe1+ {[%clk 0:00:35.2]} 26. Qd1 {[%clk 0:01:41.8]}
26... Qxd1+ {[%clk 0:00:36]} 27. Kxd1 {[%clk 0:01:43.1]} 27... Ne4 {[%clk
0:00:36.8]} 28. Nd3 {[%clk 0:01:42.7]} 28... Bg4+ {[%clk 0:00:37]} 29. Kc1
{[%clk 0:01:43.7]} 29... Nd6 {[%clk 0:00:37.1]} 30. Nd4 {[%clk 0:01:44.2]} 30...
Nc4 {[%clk 0:00:37.4]} 31. b3 {[%clk 0:01:45.2]} 31... Nxa5 {[%clk 0:00:38]} 32.
Nc5 {[%clk 0:01:46.2]} 32... Rc8 {[%clk 0:00:34.1]} 33. b4 {[%clk 0:01:46.6]}
33... Nc4 {[%clk 0:00:33.9]} 34. c3 {[%clk 0:01:47.3]} 34... g5 {[%clk
0:00:33.6]} 35. Nb5 {[%clk 0:01:48]} 35... a5 {[%clk 0:00:30.9]} 0-1

[Event "*** Titled Tuesday Blitz"]
[Site "Chess.com"]
[Date "2019.05.07"]
[Round "1"]
[White "HansCoolNiemann"]
[Black "sergiochess83"]
[Result "1-0"]
[WhiteElo "2490"]
[BlackElo "2882"]
[TimeControl "180+2"]
[EndTime "13:06:34 PDT"]
[Termination "HansCoolNiemann won by resignation"]

1. d4 {[%clk 0:03:01.8]} 1... Nf6 {[%clk 0:02:59.8]} 2. c4 {[%clk 0:03:02.2]}
2... g6 {[%clk 0:03:01.2]} 3. Nc3 {[%clk 0:03:03]} 3... d5 {[%clk 0:02:57.3]} 4.
Nf3 {[%clk 0:02:54.2]} 4... Bg7 {[%clk 0:02:57.9]} 5. cxd5 {[%clk 0:02:53.7]}
5... Nxd5 {[%clk 0:02:58.7]} 6. e4 {[%clk 0:02:54.4]} 6... Nxc3 {[%clk
0:02:59.8]} 7. bxc3 {[%clk 0:02:56.3]} 7... c5 {[%clk 0:03:01.3]} 8. h3 {[%clk
0:02:55.2]} 8... Qa5 {[%clk 0:02:58.5]} 9. Bd2 {[%clk 0:02:53.9]} 9... O-O
{[%clk 0:02:59]} 10. Be2 {[%clk 0:02:53.8]} 10... Nd7 {[%clk 0:02:51.5]} 11. O-O
{[%clk 0:02:54]} 11... Nf6 {[%clk 0:02:51.5]} 12. Qb1 {[%clk 0:02:22.6]} 12...
Qc7 {[%clk 0:02:07.4]} 13. d5 {[%clk 0:02:15.3]} 13... Nh5 {[%clk 0:02:08.1]}
14. Re1 {[%clk 0:02:01.5]} 14... f5 {[%clk 0:02:06.1]} 15. e5 {[%clk 0:01:57.2]}
15... e6 {[%clk 0:02:00.6]} 16. Bc4 {[%clk 0:01:35.5]} 16... exd5 {[%clk
0:01:46.2]} 17. Bxd5+ {[%clk 0:01:34.9]} 17... Kh8 {[%clk 0:01:48.1]} 18. c4
{[%clk 0:01:35.6]} 18... Rb8 {[%clk 0:01:41.4]} 19. e6 {[%clk 0:01:34.7]} 19...
Nf6 {[%clk 0:01:35.6]} 20. Qc1 {[%clk 0:01:10.4]} 20... Qe7 {[%clk 0:01:31.9]}
21. Bf4 {[%clk 0:01:08.8]} 21... Ra8 {[%clk 0:01:30.1]} 22. Ne5 {[%clk
0:00:54.8]} 22... Nh5 {[%clk 0:01:19.7]} 23. Nf7+ {[%clk 0:00:54.7]} 23... Kg8
{[%clk 0:01:19.5]} 24. Bd6 {[%clk 0:00:55.2]} 24... Qf6 {[%clk 0:01:10]} 25.
Bxf8 {[%clk 0:00:50.4]} 25... Kxf8 {[%clk 0:01:11.9]} 26. e7+ {[%clk 0:00:51.2]}
26... Ke8 {[%clk 0:01:13.1]} 27. Nd8 {[%clk 0:00:47.8]} 27... Bd7 {[%clk
0:01:02.3]} 28. Bf7+ {[%clk 0:00:47.2]} 28... Qxf7 {[%clk 0:01:04.2]} 29. Nxf7
{[%clk 0:00:48.8]} 29... Kxf7 {[%clk 0:01:06.1]} 30. Qd2 {[%clk 0:00:49.9]}
30... Bc6 {[%clk 0:01:05.2]} 31. Qd8 {[%clk 0:00:48.9]} 31... b6 {[%clk
0:01:05.9]} 32. Qxa8 {[%clk 0:00:46.1]} 1-0

[Event "*** Titled Tuesday Blitz"]
[Site "Chess.com"]
[Date "2019.05.07"]
[Round "1"]
[White "cukus"]
[Black "Shahinyan_ChessMood"]
[Result "0-1"]
[WhiteElo "2395"]
[BlackElo "2738"]
[TimeControl "180+2"]
[EndTime "13:06:42 PDT"]
[Termination "Shahinyan_ChessMood won by checkmate"]

1. e4 {[%clk 0:03:00.5]} 1... e6 {[%clk 0:03:00.4]} 2. d4 {[%clk 0:03:00.9]}
2... d5 {[%clk 0:03:02.3]} 3. Nc3 {[%clk 0:03:00.2]} 3... Bb4 {[%clk 0:03:02.7]}
4. e5 {[%clk 0:02:59.6]} 4... c5 {[%clk 0:03:04]} 5. a3 {[%clk 0:02:59.2]} 5...
Bxc3+ {[%clk 0:03:05.4]} 6. bxc3 {[%clk 0:03:01.1]} 6... Ne7 {[%clk 0:03:07]} 7.
Qg4 {[%clk 0:03:01.3]} 7... Qc7 {[%clk 0:03:08.3]} 8. Bd3 {[%clk 0:03:00.7]}
8... cxd4 {[%clk 0:03:08.7]} 9. Ne2 {[%clk 0:02:57.7]} 9... dxc3 {[%clk
0:03:00.5]} 10. Qxg7 {[%clk 0:02:55.3]} 10... Rg8 {[%clk 0:03:01.3]} 11. Qxh7
{[%clk 0:02:56.8]} 11... Nd7 {[%clk 0:02:40.4]} 12. f4 {[%clk 0:02:51.7]} 12...
Rxg2 {[%clk 0:02:32.8]} 13. Be3 {[%clk 0:02:44.5]} 13... b6 {[%clk 0:02:22]} 14.
h4 {[%clk 0:02:42.5]} 14... Bb7 {[%clk 0:02:22.1]} 15. h5 {[%clk 0:02:40.1]}
15... Nc5 {[%clk 0:02:06.8]} 16. Rg1 {[%clk 0:02:25.5]} 16... Rxg1+ {[%clk
0:01:59.3]} 17. Nxg1 {[%clk 0:02:23.7]} 17... Nxd3+ {[%clk 0:01:55.1]} 18. Qxd3
{[%clk 0:02:21.1]} 18... O-O-O {[%clk 0:01:54.3]} 19. Nf3 {[%clk 0:02:06.8]}
19... d4 {[%clk 0:01:49.7]} 20. Bf2 {[%clk 0:02:00.1]} 20... Nf5 {[%clk
0:01:37.9]} 21. Ng5 {[%clk 0:01:50.1]} 21... Rh8 {[%clk 0:01:18]} 22. Ke2 {[%clk
0:01:40.8]} 22... Rxh5 {[%clk 0:01:17.6]} 23. Rg1 {[%clk 0:01:35.2]} 23... Bd5
{[%clk 0:01:03.7]} 24. Kd1 {[%clk 0:01:27.1]} 24... Rh2 {[%clk 0:01:03.5]} 25.
Ne4 {[%clk 0:01:06]} 25... Bxe4 {[%clk 0:00:28.6]} 26. Qxe4 {[%clk 0:01:07.2]}
26... Rxf2 {[%clk 0:00:30.1]} 27. Rg8+ {[%clk 0:01:03.7]} 27... Kd7 {[%clk
0:00:31.4]} 28. Qa8 {[%clk 0:01:04.7]} 28... Rf1+ {[%clk 0:00:32.5]} 29. Ke2
{[%clk 0:01:02.9]} 29... Qc4# {[%clk 0:00:34.4]} 0-1